Cogmind - Beta 15 @@@ ROGUE MODE // 2025.05.30 @ 21:36:14 Player: Jack Result: Destroyed by DAS Turret with DAS Cannon Performance ------------- Evolutions (0) 0 Regions Visited (3) 600 Robots Destroyed (1) 5 Value Destroyed (1) 1 Prototype IDs (23) 460 Alien Tech Used (0) 0 Bonus (-9) -9 TOTAL SCORE: 1057 Bonus ------- Aligned with FarCom 300 Friendly Fire -309 Cogmind --------- Core Integrity 0/250 Matter 172/300 Energy 98/100 System Corruption 0% Temperature Cool (0) Movement Core (50) Location -10/Exiles Parts ------- > --- POWER (1) -------- (None) > --- PROPULSION (2) --- (None) > --- UTILITY (2) ------ EX Chip 1 EX Chip 1 > --- WEAPON (2) ------- Longsword +1 > --- INVENTORY (5) ---- EX Chip 1 EX Chip 1 EX Chip 1 AWS/Thermal Peak State ------------ > --- POWER ------------ (None) > --- PROPULSION ------- (None) > --- UTILITY ---------- EX Chip 1 EX Chip 1 > --- WEAPON ----------- Longsword +1 > --- INVENTORY -------- AWS/Thermal Guided Plasma Cannon [Rating: 14] Favorites ----------- Power None Propulsion None Utility EX Chip 1 Hackware EX Chip 1 Weapon Light Assault Rifle Ballistic Gun Light Assault Rifle Slashing Weapon Longsword +1 Build | -11 -10 -10 -10 ------- Run | Yrd Mat Min Exi Slots Evolved . | . . . . Power . | . . . . Propulsion . | . . . . Utility . | . . . . Weapon . | . . . . Parts Attached 7 | 2 1 . 4 Power . | . . . . Engine . | . . . . Core . | . . . . Reactor . | . . . . Propulsion . | . . . . Treads . | . . . . Leg . | . . . . Wheel . | . . . . Hover . | . . . . Flight . | . . . . Utility 3 | . . . 3 Device . | . . . . Storage . | . . . . Processor . | . . . . Hackware 3 | . . . 3 Protection . | . . . . Artifact . | . . . . Weapon 4 | 2 1 . 1 Energy Gun . | . . . . Energy Cannon . | . . . . Ballistic Gun 3 | 2 1 . . Ballistic Cannon . | . . . . Launcher . | . . . . Special Weapon . | . . . . Impact Weapon . | . . . . Slashing Weapon 1 | . . . 1 Piercing Weapon . | . . . . Special Melee Weapon . | . . . . Unidentified Prototypes . | . . . . Parts Lost 2 | . 1 1 . Power . | . . . . Propulsion . | . . . . Utility . | . . . . Weapon 2 | . 1 1 . Highest Loss Streak 1 | . 1 1 . To Critical Strikes . | . . . . Average Backups . | . 1 . 1 Power . | . . . . Propulsion . | . . . . Utility . | . . . . Weapon . | . 1 . . Tool/Special . | . . . . Unused Backups 5 | . . . 5 Power . | . . . . Propulsion . | . . . . Utility 3 | . . . 3 Weapon 2 | . . . 2 Tool/Special . | . . . . Average Slot Usage (%) 21 | . 26 18 19 Hackware 1 | . . . 5 Ballistic Gun 17 | . 26 18 8 Slashing Weapon 1 | . . . 5 Peak Build Rating 14 | 2 2 2 14 Average Rating 2 | 1 1 1 5 On Entrance 1 | . 2 2 1 Naked Turns . | . . . . Heaviest Build 3 | 2 3 3 3 Greatest Support 3 | 3 3 3 3 Greatest Overweight (x) . | . . . . Average Overweight (x) . | . . . . Largest Inventory Capacity 5 | 5 5 5 5 Average Capacity 5 | 5 5 5 5 Most Carried 5 | 1 1 . 5 Average Carried . | . . . 1 Final Capacity 5 | 5 5 5 5 Final Carried 5 | 1 . . 5 Class Distribution -------------------- 100% | Mutant Dominant Class ---------------- Mutant | -10/Materials Mutant | -10/Mines Mutant | -10/Exiles Resources | -11 -10 -10 -10 ----------- Run | Yrd Mat Min Exi Matter Collected 133 | 105 . . 28 Remotely . | . . . . Salvage Created 28 | . . . 28 Parts 10 | . . . 10 Haulers Intercepted . | . . . . Recyclers Shooed . | . . . . Parts Field Recycled . | . . . . Retrieved Matter . | . . . . Parts Self-Destructed . | . . . . Prevented . | . . . . Kills | -11 -10 -10 -10 ------- Run | Yrd Mat Min Exi Combat Hostiles Destroyed . | . . . . Classes Destroyed . | . . . . Best Kill Streak 1 | . . . 1 Combat Bots Only . | . . . . Max Kills in Single Turn 1 | . . . 1 Gunslinging . | . . . . Exploded . | . . . . Melee . | . . . . Uniques/NPCs Destroyed 1 | . . . 1 EX-BIN (-10/Exiles) Combat | -11 -10 -10 -10 -------- Run | Yrd Mat Min Exi Hostile Shots Fired 49 | . 33 4 12 Missed 19 | . 15 . 4 Hits 30 | . 18 4 8 Projectile 30 | . 18 4 8 AOE 4 | . . 4 . Damage Taken 589 | . 224 153 212 Core 262 | . 104 28 130 Absorbed by Shields . | . . . . Core Remaining (%) 100 | 100 . . . Volleys Fired 1 | . . 1 . Largest 1 | . . 1 . Hottest 20 | . . 20 . Shots Fired 1 | . . 1 . Gun 1 | . . 1 . Cannon . | . . . . Launcher . | . . . . Special . | . . . . Kinetic 1 | . . 1 . Thermal . | . . . . Explosive . | . . . . Electromagnetic . | . . . . Robot Hit Streak 1 | . . 1 . Robot Miss Streak . | . . . . Penetration Max . | . . . . Secondary Targets . | . . . . Shots Hit Robots 3 | . . 1 2 Core Hits 1 | . . . 1 Critical Kills . | . . . . Critical Parts Destroyed . | . . . . Critical Strikes . | . . . . Melee Attacks 2 | . . . 2 Impact . | . . . . Slashing 2 | . . . 2 Piercing . | . . . . Sneak Attacks 2 | . . . 2 Combat Hostiles . | . . . . Follow-up Attacks . | . . . . Damage Inflicted 220 | . . 7 213 Guns 7 | . . 7 . Cannons . | . . . . Explosions . | . . . . Melee 213 | . . . 213 Ramming . | . . . . Kinetic 7 | . . 7 . Thermal . | . . . . Explosive . | . . . . Electromagnetic . | . . . . Impact . | . . . . Slashing 213 | . . . 213 Piercing . | . . . . Highest Corruption . | . . . . Average Corruption . | . . . . Corruption Purged . | . . . . Corruption Blocked . | . . . . Overload Shots . | . . . . Overflow Damage 102 | . . . 102 Projectiles . | . . . . Explosions . | . . . . Melee 102 | . . . 102 Knockbacks . | . . . . Impact . | . . . . Kinetic . | . . . . Secondary . | . . . . Self-Inflicted Damage . | . . . . Shots . | . . . . Rammed . | . . . . Targets Rammed . | . . . . Kicked . | . . . . Crushed . | . . . . Highest Temperature . | . . . . Average Temperature . | . . . . Received Heat Transfer 105 | . 105 . . Siege Activations . | . . . . Martial Activations . | . . . . Shielding Activations . | . . . . Robots Disrupted . | . . . . Combat Hostiles . | . . . . Robots Corrupted . | . . . . Combat Hostiles . | . . . . Parts Fried . | . . . . Impact Corruptions . | . . . . Robots Melted . | . . . . Combat Hostiles . | . . . . Parts Melted . | . . . . Heat Transferred . | . . . . Parts Sabotaged . | . . . . Parts Stolen . | . . . . Parts Stripped . | . . . . Power Chain Reactions . | . . . . Alert | -11 -10 -10 -10 ------- Run | Yrd Mat Min Exi Maximum Alert Level . | . . . . Low Security (%) 100 | 100 100 100 . Level 1 . | . . . . Level 2 . | . . . . Level 3 . | . . . . Level 4 . | . . . . Level 5 . | . . . . High Security . | . . . . Max Security . | . . . . Peak Influence 30 | . 15 30 . Initial 5 | . . 5 . Average 4 | . 2 6 . Influence Increases 60 | . 30 30 . Lose Combat Pursuer 60 | . 30 30 . Influence Decreases 60 | . 15 45 . Entered New Map 10 | . . 10 . Time Decay 45 | . 10 35 . Lost Part 5 | . 5 . . Squads Dispatched 1 | . 1 . . Investigation 1 | . 1 . . Extermination . | . . . . Reinforcement . | . . . . Assault . | . . . . Garrison . | . . . . Intercept . | . . . . Searches Triggered . | . . . . Construction Impeded . | . . . . Haulers Reinforced . | . . . . Active Scanning Responses . | . . . . Cargo Convoy Interrupts . | . . . . Stealth | -11 -10 -10 -10 --------- Run | Yrd Mat Min Exi Distress Signals 1 | . 1 . . Communications Jammed . | . . . . Distress Signals . | . . . . Times Spotted 19 | . 10 2 7 Peak Tracking Total 10 | . 9 2 10 Tactical Retreats 2 | . 1 1 . Traps | -11 -10 -10 -10 ------- Run | Yrd Mat Min Exi Traps Triggered 1 | . 1 . . Indirectly . | . . . . Trap Hack Attempts . | . . . . Triggered . | . . . . Disarmed . | . . . . Reprogrammed . | . . . . Reused . | . . . . Traps Extracted . | . . . . Installed . | . . . . Triggered . | . . . . Machines | -11 -10 -10 -10 ---------- Run | Yrd Mat Min Exi Machines Disabled . | . . . . Max in Single Turn . | . . . . Machines Repaired . | . . . . Machines Dismantled . | . . . . Machines Sabotaged . | . . . . Overloaded Fab Kills . | . . . . Hacking | -11 -10 -10 -10 --------- Run | Yrd Mat Min Exi Machines Accessed 1 | . . . 1 Terminals . | . . . . Fabricators . | . . . . Repair Stations . | . . . . Recycling Units . | . . . . Scanalyzers . | . . . . Garrison Access . | . . . . Total Hacks 1 | . . . 1 Successful 1 | . . . 1 Failed . | . . . . Catastrophic . | . . . . Database Lockouts . | . . . . Manual 1 | . . . 1 Terminals . | . . . . Fabricators . | . . . . Repair Stations . | . . . . Recycling Units . | . . . . Scanalyzers . | . . . . Garrison Access . | . . . . Terminal Hacks 1 | . . . 1 Proto ID Catalog 1 | . . . 1 Fabricator Hacks . | . . . . Repair Station Hacks . | . . . . Recycling Unit Hacks . | . . . . Scanalyzer . | . . . . Garrison Access Hacks . | . . . . Unauthorized Hacks . | . . . . Terminals . | . . . . Fabricators . | . . . . Repair Stations . | . . . . Recycling Units . | . . . . Scanalyzers . | . . . . Garrison Access . | . . . . Data Cores Recovered . | . . . . Used . | . . . . Hacking Detections . | . . . . Full Trace Events . | . . . . Feedback Events . | . . . . Feedback Blocked . | . . . . Robot Schematics Acquired . | . . . . Robots Built . | . . . . Authchips . | . . . . Time . | . . . . Total Robot Build Rating . | . . . . Part Schematics Acquired . | . . . . Parts Built . | . . . . Authchips . | . . . . Time . | . . . . Total Part Build Rating . | . . . . Parts Repaired . | . . . . Time . | . . . . Parts Recycled . | . . . . Recycled Matter . | . . . . Retrieved Matter . | . . . . Retrieved Components . | . . . . Parts Scanalyzed . | . . . . Part Schematics Acquired . | . . . . Parts Damaged . | . . . . Bothacking | -11 -10 -10 -10 ------------ Run | Yrd Mat Min Exi Used RIF Installer . | . . . . Robots Hacked . | . . . . Non-combat . | . . . . Combat . | . . . . Robot Hacks Applied . | . . . . Relay Couplers Released . | . . . . Fabnet Peak Effective % . | . . . . Robots Rewired . | . . . . Allies Hacked . | . . . . Hacks Repelled . | . . . . Allies | -11 -10 -10 -10 -------- Run | Yrd Mat Min Exi Total Allies . | . . . . Largest Group . | . . . . Highest-Rated Group . | . . . . Highest-Rated Ally . | . . . . Total Orders . | . . . . Ally Attacks . | . . . . Total Damage . | . . . . Kills . | . . . . Allies Corrupted . | . . . . Allies Melted . | . . . . Intel | -11 -10 -10 -10 ------- Run | Yrd Mat Min Exi Active Infowar (turns) . | . . . . Robot Analysis Total . | . . . . Derelict Logs Recovered 2 | . . 2 . Drone Launches . | . . . . Drone Recoveries . | . . . . Exploration | -11 -10 -10 -10 ------------- Run | Yrd Mat Min Exi Turns Passed 372 | 20 97 146 109 Spaces Moved 694 | 31 191 287 185 Core 694 | 31 191 287 185 Treads . | . . . . Legs . | . . . . Wheels . | . . . . Hover . | . . . . Flight . | . . . . Fastest Speed 50 | 50 50 50 50 Average Speed 50 | 50 50 50 50 Slowest Speed 50 | 50 50 50 50 Overloaded Moves . | . . . . Propulsion Burnouts . | . . . . Robots Hopped . | . . . . Potential Cave-ins . | . . . . Cave-ins Triggered . | . . . . Exploration Rate (%) 41 | 3 40 75 49 Regions Visited 3 Branch Regions 2 Pre-discovered Areas 1 | . . 1 . Known Exits Taken . | . . . . Unknown Exits Taken 3 | 1 1 1 . Scrap Searched . | . . . . Spaces Dug . | . . . . Terrain Destroyed . | . . . . Melee . | . . . . Projectile . | . . . . AOE . | . . . . Terrain Rammed . | . . . . Walls Destroyed . | . . . . Machines Disabled . | . . . . Actions | -11 -10 -10 -10 --------- Run | Yrd Mat Min Exi Total 711 | 33 191 288 199 Wait 1 | . . 1 . Move 691 | 30 190 286 185 Hop . | . . . . Pick Up 6 | 1 . . 5 Fast Attach 6 | 2 . . 4 Attach 1 | . 1 . . Detach . | . . . . Swap . | . . . . Drop 3 | . . . 3 Fire 1 | . . 1 . Melee 2 | . . . 2 Ram . | . . . . Kick . | . . . . Crush . | . . . . Escape Stasis . | . . . . Rewire . | . . . . Trap . | . . . . Miscellaneous . | . . . . Route ------- -11/Scrapyard -10/Materials (discovered 2 exits: [*Min x2]) -10/Mines (discovered 3 exits: [*Mat x2] / *Exi) -10/Exiles (discovered 1 exit: [*Min]) History --------- Turn | Location | Event 2 | -11/Scrapyard | Met Revision 17 7 | -11/Scrapyard | Discovered new exit (range 16) 21 | -11/Scrapyard | Entered Materials 21 | -10/Materials | Discovered new exit (range 14) 67 | -10/Materials | Discovered new exit (range 15) 118 | -10/Materials | Entered Mines 140 | -10/Mines | Learned 2 Materials zone layouts 145 | -10/Mines | Assembled infested the area 148 | -10/Mines | Core integrity fell below 50% 149 | -10/Mines | Discovered new exit (range 14) 197 | -10/Mines | Learned location of Zion (-7) 227 | -10/Mines | Discovered new exit (range 8) 261 | -10/Mines | Deemed a non-threat by the Exiles lab entrance 262 | -10/Mines | Discovered new exit (range 5) 264 | -10/Mines | Entered Exiles 271 | -10/Exiles | Discovered new exit (range 15) 277 | -10/Exiles | Met 8R-AWN 284 | -10/Exiles | Met EX-HEX 299 | -10/Exiles | Met EX-BIN 302 | -10/Exiles | Build established: Mutant 305 | -10/Exiles | Aligned with FarCom system 306 | -10/Exiles | Given EX-Vault access code 318 | -10/Exiles | Opened EX-Vault 321 | -10/Exiles | Found AWS/Thermal 324 | -10/Exiles | Found Gui. Plasma Cannon 326 | -10/Exiles | Found Longsword +1 338 | -10/Exiles | Warned to stay clear of 0b10 Research branches 343 | -10/Exiles | Attacked by the Exiles 343 | -10/Exiles | Destroyed EX-BIN 368 | -10/Exiles | Core integrity fell below 20% 373 | -10/Exiles | Destroyed by DAS Turret with DAS Cannon Last Messages --------------- And if we have to leave here due to unforeseen circumstances, don't worry the FarCom system will continue to maintain contact via our distributed network. Sneak attack on EX-BIN. Destroyed EX Chip 2. Destroyed Mak. Hover Unit. Destroyed EX Chip 1. EXILES: Hostile robot within lab perimeter. Defensive protocols time, folks! Sneak attack on EX-BIN. EX-BIN: "You can't kill me, my evil twin will get revenge!" EX-BIN destroyed. Acquired EX Chip 2. Discarded EX Chip 2. Acquired EX Chip 1. Acquired 28 matter. Dropped Gui. Plasma Cannon. Acquired EX Chip 1. Penetrated by HV Slug. HV Slug penetrates Machine. Machine disabled. Penetrated by HV Slug. Map ----- +----------------------------------------------------+ | ????????????????????????????????"""""?# #???## | | ???????????????????????????????"""" ## #????? | | ??????????????????????????????#""X" #????? | | ??????????????????????????????#" #????? | | ??????????????????????????????#" ## #????? | | ??????????????????????????????#""""""?# #?#### | | ???????????????????????????????#"###??# #?#""" | | ??????????????????????????????????????# #?#""" | | ??????????????????????????????????????# #?#""" | | ?????????????????????????????????????## ###"" | | ?????????????????????????????????????#" | | ?????????????????????????????????????#" | | ?????????????????????????????????????#" | | ?????????????????????????????????????#" | | ????????????????????????#####????????#" | | ???????????????????????? """#???????#" ! | | ???????????????????????"" """#???????## | | ??????????????????????#"" ?????????# | | ??????????????????????#"" ?????????#" "X" | | ??????????????????????#"" "?????????#" """ | | ??????????????????????? "??????????#" """"" | | ????????????????????????" "?????????##" ###### | | ????????????????????????# #????????##"" #????? | | ??????????????????????#?# ###?######"" #????? | | ?????????????? """#####X# #"###""""""" ##???? | | ?????????? @ """""" " "" ##??? | | ?????????? % "" """ #### | | ?????????? " | | ???????????# aa | | ???????????### | | ?????????????## % | | ??????????????## | | ???????????????##" | | ????????????????#""" """""" | | ????????????????#" ######""" | | ?????????????????" ""##????#####""" | | ?????????????????"" """##?????????##""" | | ?????????????????" """##???????????#"""" | | ?????????????????" ""#????????????#"" | | ?????????????????? ???????????????""" | | ???????????????????? ?????????????? | | ?????????????????????? ?????????????? | | ????????????????????????? ??????????????? | | ??????????????????????????? ?????????????? | | ???????????????????????????????????????????? | | ????????????????????????????????????????????"" | | ?????????????????????????????????????????????"" " | | ??????????????????????????????????????????????##"" | | ?????????????????????????????????????????????????# | | ?????????????????????????????????????????????????? | +----------------------------------------------------+ Best States ------------- Heat Dissipation 25 Energy Generation 5 Energy Capacity 100 Matter Stores 190 Matter Capacity 300 Sight Range 16 Terrain Scan Density 10 Evasion (%) 50 Offensive Hacking 14 Item Schematics ----------------- None Robot Schematics ------------------ None Fabricated ------------ Nothing Repaired ---------- Nothing Alien Tech Used ----------------- None Achievements -------------- None Challenges ------------ None Game ------ Seed ChromionControlSabre Manual? 0 Play Time 00:05:43 Cumulative 223.8 hours Start 2025.05.30 @ 21:31:54 End 2025.05.30 @ 21:36:14 Sessions 1 Manual Loads 0 Difficulty Rogue Special Mode None Game No. 225 Rogue 36 Adventurer 177 Explorer 12 Win Type - Total 61 Types 18/1/16/2/12/0/4/3/0/5 Lore% 49 Gallery% 50 Achievement% 68 Wizard Run 0 Options --------- Layout 0 ASCII 0 Keyboard 0 Movement Numpad Keybinds 0 Fullscreen 2 Font 12/Smallcaps Map View 83x54 Zoom Use 0% Tactical HUD 0 Map Filters NONE Filters NONE Steam X RUN: 714812f1-6bdd-4058-a668-ad209e72f231